{"text_format":"1","workbook":"xlsx","n_sheets":3,"sheets":["はじめに「操作手順」（印刷不要）","表紙","県外"],"not_rendered":{"charts":0,"images":19,"macros":1,"external_links":0,"defined_names":3,"comments":0,"pivot_tables":0},"unopened":[],"bounds":{"document_bytes":16777216,"sheet_cells":100000,"rows_first":2000,"rows_last":500,"rows_between":2000,"halvings":0,"cell_chars":16384,"cell_head_chars":4096},"cells_cut":0,"cells_raw":0,"read":"whole","date_system":"1900"}

{"sheet":"はじめに「操作手順」（印刷不要）","index":0,"n_rows":446,"n_cols":28,"rows_kept":446,"cut":false,"hidden":false,"merged":[[0,0,0,4],[4,10,5,18]]}
["Excel利用時の注意事項【重要】"]
[null,"MicrosoftのExcelのみで利用してください。"]
[null,"MicrosoftのExcel以外の互換ソフトで利用するとプログラム（マクロ）やその他機能が正常に動作しません。"]
[]
["当ファイルを開いた時の留意事項",null,null,null,null,null,null,null,null,null,"以下のセキュリティ リスクのメッセージが出た場合、一旦ファイルを閉じて右の図のように対応する。"]
[null,"下記の「コンテンツの有効化」が表示されたらクリックして下さい。",null,null,null,null,null,null,null,null,null,null,null,null,null,null,null,null,null,null,"該当のEXCELファイルを右クリックしてプロパティを選択する。",null,null,null,null,null,null,"プロパティの画面が出力したら、セキュリティの「許可する」にチェックして、OKボタンを押下する。"]
[]
[]
[]
[]
[]
[]
[]
[]
[]
[null,"「コンテンツの有効化」をクリックした後に下記の画面が表示されたら「はい」をクリックして下さい。"]
[]
[]
[]
[]
[]
[]
[]
[]
[]
[]
[]
[]
[]
[]
["手順の概要"]
[null,"手順の概要を以下に示します。（詳細は、下記手順内容を参照願います）"]
[null,null,"手順１","「県外」シートで必要な入力を行います。"]
[null,null,"手順２","「表紙」シートでの「項目チェック及び申請」ボタン処理を実行し、入力内容が正しいかチェックします。"]
[null,null,"手順３","手順２のチェックの結果、エラーがあった場合は、エラーに該当する項目を修正します。"]
[null,null,"手順４","「提出書類」に表示された必要資料を準備し、確認を行います。"]
[null,null,"手順５","手順２のチェックの結果、判定が青色で「可能」と表示されていることを確認します。"]
[null,null,"手順６","「表紙」シートと「県外」シートを印刷します。"]
[null,null,"手順７","手順６で印刷した印刷物をホチキスでとめて、他の送付書類とともに受付センターに書留で郵送します。　※詳細は、手引き「11.綴り方」を参照"]
[null,null,null,null,null,null,null,null,null,null,null,null,null,null,null,null,null,null,null,null,null,null,null,null,null,null,null,"※デスクトップ以外のフォルダに移動すると、有効ではなくなる場合があるので"]
[null,null,"注１","「県外」「表紙」の記入においてエラーを解消する入力ができない場合は、県ホームページ掲載のFAQを参照願います。",null,null,null,null,null,null,null,null,null,null,null,null,null,null,null,null,null,null,null,null,null,null,null,"　デスクトップ上で行ってください。"]
[null,null,null,"FAQを確認しても解消方法がわからない場合は、県共同受付センターへ問い合わせ願います。"]
[null,null,null,"【ＦＡＱ】"]
[null,null,null,"https://view.officeapps.live.com/op/view.aspx?src=https%3A%2F%2Fwww.pref.ibaraki.jp%2Fdoboku%2Fkanri%2Fkensetsu%2Fdocuments%2Ffaq20220929.xlsx&wdOrigin=BROWSELINK"]
[null,null,null,"【県共同受付センター】"]
[null,null,null,"電話：",null,"０３－５４３５－５５８８"]
[null,null,null,"メールアドレス：",null,"center222.bpo.fm@hitachi-systems.com"]
[]
[null,"手順の詳細を以下に示します。"]
[]
["手順１","「県外」シートで必要な入力を行います。"]
[]
[]
[]
[]
[]
[]
[]
[]
[]
[]
[]
[]
[]
[]
[]
[]
[]
[]
[]
[]
[]
[]
[]
[]
[]
[]
[]
[]
[]
[]
[]
[]
[]
[]
[]
[]
[]
[]
[]
[]
[]
[]
[]
[]
[]
[]
[]
[]
[]
[]
[]
[]
[]
[]
[]
[]
[]
[]
[]
[]
[]
[]
[]
[]
[]
[]
[]
[]
[]
[]
[]
[]
["手順２","「表紙」シートでの「項目チェック及び申請」ボタン処理を実行し、入力内容が正しいかチェックします。"]
[]
[]
[]
[]
[]
[]
[]
[]
[]
[]
[]
[]
[]
[]
[]
[]
[]
[]
[]
[]
[]
[]
[]
[]
[]
[]
[]
[]
[]
[]
[]
[]
["手順３","手順２のチェックの結果、エラーがあった場合は、エラーに該当する項目を修正します。"]
[]
[]
[]
[]
[]
[]
[]
[]
[]
[]
[]
[]
[]
[]
[]
[]
[]
[]
[]
[]
[]
[]
[]
[]
[]
[]
[]
[]
[]
[]
[]
[]
["手順４","「提出する書類」に表示された必要資料を準備し、確認を行います。"]
[]
[]
[]
[]
[]
[]
[]
[]
[]
[]
[]
[]
[]
[]
[]
[]
[]
[]
[]
[]
[]
[]
[]
[]
[]
[]
[]
[]
[]
[]
[]
[]
[]
[]
[]
[]
[]
[]
[]
[]
[]
[]
[]
[]
[]
["手順５","手順２のチェックの結果、判定が青色で「可能」と表示されていることを確認します。"]
[]
[]
[]
[]
[]
[]
[]
[]
[]
[]
[]
[]
[]
[]
[]
[]
[]
[]
[]
[]
[]
[]
[]
[]
[]
[]
[]
[]
[]
[]
[]
[]
[]
[]
[]
[]
["手順６","「表紙」シートと「県外」シートを印刷します。"]
[]
[null,"判定が「可能」であることを確認した後に「表紙」シートと「県外」シートの印刷を行います。"]
[]
[null,"「表紙」シートの画面右上の下記「印刷」ボタンをクリックし、印刷して下さい。"]
[null,"（「印刷」ボタンをクリックすることにより「表紙」シートと「県外」シートが印刷されます）"]
[]
[]
[]
[]
[]
[null,"もし「印刷」ボタンで印刷できない場合は、下記の手順で印刷して下さい。"]
[]
[]
[]
[]
[]
[]
[]
[]
[]
[]
[]
[]
[]
[]
[]
[]
[]
[]
[]
[]
[]
[]
[]
[]
[]
[]
[]
[]
[]
[]
[]
[]
[]
[]
[]
[]
[]
[]
[]
[]
[]
[]
[]
[]
[]
[]
[]
[]
[]
[]
[]
[]
[]
[]
[]
[]
[]
[]
[]
[]
[]
[]
[]
[]
[]
[]
[]
[]
[]
[]
[]
[]
[]
[]
[]
[]
[]
[]
[]
[]
[]
[]
[]
[]
[]
[]
[]
[]
[]
[]
[]
[]
[]
[]
[]
[]
[]
[]
[]
[]
[]
[]
[]
[]
[]
[]
[]
[]
[]
[]
[]
[]
[]
[]
[]
[]
[]
[]
[]
[]
[]
[]
[]
[]
[]
[]
[]
[]
[]
[]
[]
[]
[]
[]
[]
[]
[]
[]
[]
[]
[]
[]
[]
[]
[]
[]
[]
[]
[]
[]
[]
[]
[]
[]
[]
[]
[]
[]
[]
[]
[]
["以上"]

{"sheet":"表紙","index":1,"n_rows":56,"n_cols":26,"rows_kept":56,"cut":false,"hidden":false,"merged":[[55,3,55,21],[23,12,23,14],[24,3,26,10],[24,12,26,14],[31,3,31,20],[33,3,33,20],[24,16,26,26],[23,16,23,26],[45,8,45,10],[45,11,45,21],[46,9,46,10],[46,12,46,13],[46,14,46,15],[46,16,46,17],[46,18,46,19],[46,20,46,21],[51,3,51,7],[54,3,54,21],[48,3,48,4],[48,9,48,11],[48,13,48,14],[48,16,48,17],[49,9,49,10]]}
[null,"様式第６号の２　（表紙）",null,null,null,null,null,null,null,null,null,null,null,null,null,null,{"$f":"県外!AG1","v":"Ver01-02"}]
[]
[null,"本EXCELは、様式第6号の2（建設工事入札参加資格調書（その１　県外業者用）)の申請書類を作成するものです。"]
[]
[]
[]
[]
[]
[null,"入力漏れのチェック","「県外」シートに記載されている申請項目の入力がすべて完了しましたら、「項目チェック"]
[null,null,"及び申請」ボタンを押下し申請書類の出力をしてください。"]
[null,null,"その際、記入漏れチェックを行います。エラーメッセージが出力されましたら、「県内」シート"]
[null,null,"の申請内容を確認の上申請書類の修正を行ってください。"]
[null,null,"提出する書類が手元にあることを確認の上チェックを行って下さい。"]
[null,null,"※入力チェックする際は、マクロを有効にしてから実施願います。"]
[]
[null,"申請書の印刷","入力チェック漏れが完了しますと、「提出の可否」の判定欄が「可能」の表示に代わります。"]
[null,null,"判定欄が可能と表示されたら、申請書類を印刷し、提出願います。"]
[]
[null,"申請書提出方法","出力された書類は以下の並びでホチキス止めして提出願います"]
[null,null,null,"様式第６号の２（表紙）"]
[null,null,null,"様式第６号の２（建設工事入札参加資格調書（その１　県外業者用）)"]
[]
[]
[null,null,null,null,null,null,null,null,null,null,null,null,"判定",null,null,null,"事務局使用欄"]
[null,null,null,"提出の可否",null,null,null,null,null,null,null,null,"不可"]
[]
[]
[]
[]
[null,null,null,null,null,null,null,null,null,null,null,null,null,null,null,null,null,null,null,null,null,null,null,null,null,"センターチェック欄"]
[null,null,null,null,null,null,null,null,null,null,null,null,null,null,null,null,null,null,null,null,null,null,null,null,null,"↓"]
[null,"商号又は名称",null,{"$f":"IF(県外!$I$4=\"\",\"\",県外!$I$4)","v":""}]
[]
[null,"代表者氏名",null,{"$f":"IF(県外!$I$5=\"\",\"\",県外!$I$5)","v":""}]
[]
[]
[null,"入力確認欄"]
[null,"大臣・知事コード","①",{"$f":"IF(県外!$I$7=\"\",\"\",県外!$I$7)","v":""},{"$f":"IF(県外!$J$7=\"\",\"\",県外!$J$7)","v":""},"－",{"$f":"IF(県外!$L$7=\"\",\"\",県外!$L$7)","v":""},{"$f":"IF(県外!$M$7=\"\",\"\",県外!$M$7)","v":""},{"$f":"IF(県外!$N$7=\"\",\"\",県外!$N$7)","v":""},{"$f":"IF(県外!$O$7=\"\",\"\",県外!$O$7)","v":""},{"$f":"IF(県外!$P$7=\"\",\"\",県外!$P$7)","v":""},{"$f":"IF(県外!$Q$7=\"\",\"\",県外!$Q$7)","v":""},{"$f":"IF(県外!$I$8=\"\",\"\",県外!$I$8)","v":""},{"$f":"IF(県外!$J$8=\"\",\"\",県外!$J$8)","v":""},"－",{"$f":"IF(県外!$L$8=\"\",\"\",県外!$L$8)","v":""},{"$f":"IF(県外!$M$8=\"\",\"\",県外!$M$8)","v":""},{"$f":"IF(県外!$N$8=\"\",\"\",県外!$N$8)","v":""},{"$f":"IF(県外!$O$8=\"\",\"\",県外!$O$8)","v":""},{"$f":"IF(県外!$P$8=\"\",\"\",県外!$P$8)","v":""},{"$f":"IF(県外!$Q$8=\"\",\"\",県外!$Q$8)","v":""}]
[]
[null,"審査基準日","②",{"$f":"IF(県外!$I$9=\"\",\"\",県外!$I$9)","v":""},{"$f":"IF(県外!$J$9=\"\",\"\",県外!$J$9)","v":""},{"$f":"IF(県外!$K$9=\"\",\"\",県外!$K$9)","v":"年"},{"$f":"IF(県外!$L$9=\"\",\"\",県外!$L$9)","v":""},{"$f":"IF(県外!$M$9=\"\",\"\",県外!$M$9)","v":""},{"$f":"IF(県外!$N$9=\"\",\"\",県外!$N$9)","v":"月"},{"$f":"IF(県外!$O$9=\"\",\"\",県外!$O$9)","v":""},{"$f":"IF(県外!$P$9=\"\",\"\",県外!$P$9)","v":""},{"$f":"IF(県外!$Q$9=\"\",\"\",県外!$Q$9)","v":"日"}]
[]
[null,"主たる営業所の電話番号","③",{"$f":"IF(県外!$I$10=\"\",\"\",県外!$I$10)","v":""},{"$f":"IF(県外!$J$10=\"\",\"\",県外!$J$10)","v":""},{"$f":"IF(県外!$K$10=\"\",\"\",県外!$K$10)","v":""},{"$f":"IF(県外!$L$10=\"\",\"\",県外!$L$10)","v":""},{"$f":"IF(県外!$M$10=\"\",\"\",県外!$M$10)","v":""},{"$f":"IF(県外!$N$10=\"\",\"\",県外!$N$10)","v":""},{"$f":"IF(県外!$O$10=\"\",\"\",県外!$O$10)","v":""},{"$f":"IF(県外!$P$10=\"\",\"\",県外!$P$10)","v":""},{"$f":"IF(県外!$Q$10=\"\",\"\",県外!$Q$10)","v":""},{"$f":"IF(県外!$R$10=\"\",\"\",県外!$R$10)","v":""},{"$f":"IF(県外!$S$10=\"\",\"\",県外!$S$10)","v":""},{"$f":"IF(県外!$T$10=\"\",\"\",県外!$T$10)","v":""},{"$f":"IF(県外!$U$10=\"\",\"\",県外!$U$10)","v":""}]
[]
[null,"法人番号","④",{"$f":"IF(県外!$I$13=\"\",\"\",県外!$I$13)","v":""},{"$f":"IF(県外!$J$13=\"\",\"\",県外!$J$13)","v":""},{"$f":"IF(県外!$K$13=\"\",\"\",県外!$K$13)","v":""},{"$f":"IF(県外!$L$13=\"\",\"\",県外!$L$13)","v":""},{"$f":"IF(県外!$M$13=\"\",\"\",県外!$M$13)","v":""},{"$f":"IF(県外!$N$13=\"\",\"\",県外!$N$13)","v":""},{"$f":"IF(県外!$O$13=\"\",\"\",県外!$O$13)","v":""},{"$f":"IF(県外!$P$13=\"\",\"\",県外!$P$13)","v":""},{"$f":"IF(県外!$Q$13=\"\",\"\",県外!$Q$13)","v":""},{"$f":"IF(県外!$R$13=\"\",\"\",県外!$R$13)","v":""},{"$f":"IF(県外!$S$13=\"\",\"\",県外!$S$13)","v":""},{"$f":"IF(県外!$T$13=\"\",\"\",県外!$T$13)","v":""},{"$f":"IF(県外!$U$13=\"\",\"\",県外!$U$13)","v":""}]
[]
[null,"申請項目",null,"⑤","⑥","⑦","⑧","⑨"]
[null,null,null,{"$f":"IF(県外!$I$15=\"\",\"\",県外!$I$15)","v":""},{"$f":"IF(県外!$I$17=\"\",\"\",県外!$I$17)","v":""},{"$f":"IF(県外!$I$19=\"\",\"\",県外!$I$19)","v":""},{"$f":"IF(県外!$I$22=\"\",\"\",県外!$I$22)","v":""},{"$f":"IF(県外!$I$26=\"\",\"\",県外!$I$26)","v":""}]
[]
[]
[]
[]
[]
[null,null,null,null,null,null,null,null,null,null,null,null,null,null,null,null,null,null,null,null,null,null,null,"提出書類のチェック必須"]
[null,null,null,null,null,null,null,null,null,null,null,null,null,null,null,null,null,null,null,null,null,null,null,"↓"]
[null,"提出する書類",8,"法定外労災保険への加入が確認できる書類"]
[null,null,9,"調書（様式第6号の3）及び対象技術者の資格証および常勤性が確認できる書類"]

{"sheet":"県外","index":2,"n_rows":26,"n_cols":42,"rows_kept":26,"cut":false,"hidden":false,"merged":[[22,9,22,27],[23,9,23,27],[14,28,15,41],[12,1,13,7],[25,28,26,41],[18,9,18,20],[19,9,19,27],[15,9,15,27],[16,28,17,41],[25,1,26,7],[18,1,19,7],[16,1,17,7],[21,9,21,26],[21,28,23,41],[24,9,24,20],[20,9,20,20],[21,1,23,7],[14,1,15,7],[8,28,8,42],[4,8,4,20],[6,28,6,42],[12,28,13,41],[11,41,11,42],[3,28,4,30],[3,31,4,42],[7,28,7,42],[13,8,13,27],[3,1,3,7],[16,9,16,20],[17,9,17,27],[4,1,4,7],[6,1,6,7],[8,1,8,7],[7,1,7,7],[3,8,3,20],[9,1,9,7],[14,9,14,20]]}
["様式第6号の2　　　　　　　　　　　　　　　　　　　　　　　　　　　　　建設工事入札参加資格調書（その１　県外業者用）　",null,null,null,null,null,null,null,null,null,null,null,null,null,null,null,null,null,null,null,null,null,null,null,null,null,null,null,null,null,null,null,"Ver01-02"]
[]
[]
[null,"商号又は名称",null,null,null,null,null,null,null,null,null,null,null,null,null,null,null,null,null,null,null,null,null,null,null,null,null,null,"行政庁記入欄"]
[null,"代表者氏名"]
[]
[1,"大臣・知事コード",null,null,null,null,null,null,null,null,"－",null,null,null,null,null,null,null,null,null,null,null,null,null,null,null,null,null,"※大臣は００－６桁の許可番号、他の都道府県知事は\n　 該当するコード－６桁の許可番号を記入"]
[null,"取消前の大臣・知事コード\n（該当者のみ記入）",null,null,null,null,null,null,null,null,"－",null,null,null,null,null,null,null,null,null,null,null,null,null,null,null,null,null,"※Ｈ31・32またはR3・4入札参加資格を持っていて許可取り消しにより、資格を取り消された場合は、取消前の許可番号を記入"]
[2,"審査基準日",null,null,null,null,null,null,null,null,"年",null,null,"月",null,null,"日",null,null,null,null,null,null,null,null,null,null,null,"※経営事項審査の審査基準日を記入（和暦で元号表示なし）\n数字で入力、何も入力がない場合は「0」を入力（空白は入力不可）"]
[3,"主たる営業所の電話番号",null,null,null,null,null,null,null,null,null,null,null,null,null,null,null,null,null,null,null,null,null,null,null,null,null,null,"※(例)",null,"０","２","９","－","３","０","１","－","４","３","３","４"]
[]
[null,"４以下を記入するときは、必ず右側の確認欄で、調書や確認書類に漏れがないか確認してください。",null,null,null,null,null,null,null,null,null,null,null,null,null,null,null,null,null,null,null,null,null,null,null,null,null,null,"【添付する調書・確認書類】",null,null,null,null,null,null,null,null,null,null,null,null,"行政庁\n確認欄"]
[4,"法人番号",null,null,null,null,null,null,{"$f":"IF(V13=12,AA13,\"\")","v":""},null,null,null,null,null,null,null,null,null,null,null,null,{"$f":"LEN(J13)+LEN(K13)+LEN(L13)+LEN(M13)+LEN(N13)+LEN(O13)+LEN(P13)+LEN(Q13)+LEN(R13)+LEN(S13)+LEN(T13)+LEN(U13)","v":0},{"$f":"U13+S13+Q13+O13+M13+K13","v":0},{"$f":"T13+R13+P13+N13+L13+J13","v":0},{"$f":"X13*2+W13","v":0},{"$f":"MOD(Y13,9)","v":0},{"$f":"9-Z13","v":9},null,"法人番号について\n※個人事業主は記載不要\n※国税庁長官が発行する法人番号指定通知書の写し、または、国税庁法人番号公表サイトで確認してください。\n※確認資料の添付は不要"]
[null,null,null,null,null,null,null,null,"※先頭から２～１３桁目の１２桁を入力して下さい。先頭１桁目のチェックデジットは\n　 自動で計算し設定されます。"]
[5,"健康保険の加入状況",null,null,null,null,null,null,null,"１：加入（審査基準日）　２：適用除外",null,null,null,null,null,null,null,null,null,null,null,null,null,null,null,null,null,null,"健康保険、厚生年金保険、雇用保険の加入状況について\n※１加入、２適用除外の場合とも確認書類は添付不要（別に提出している経審の結果通知書で確認します。）"]
[]
[6,"厚生年金保険の加入状況",null,null,null,null,null,null,null,"１：加入（審査基準日）　２：適用除外",null,null,null,null,null,null,null,null,null,null,null,null,null,null,null,null,null,null,"※経審の結果通知書で「加入」、「適用除外」が確認できない場合、申請は受付けません。"]
[]
[7,"雇用保険の加入状況",null,null,null,null,null,null,null,"１：加入（審査基準日）　２：適用除外"]
[]
[]
[8,"法定外の労働災害補償保険の加入状況\n",null,null,null,null,null,null,null,"０：未加入　１：総合評定値通知書により確認　２：法定外労災保険の加入資料により確認（完了票の場合も選択）",null,null,null,null,null,null,null,null,null,null,null,null,null,null,null,null,null,null,"※２の場合は、\n　・法定外労災保険への加入が確認できる書類\n　（法定外労働災害補償制度加入証明書、保険契約証明書、保険証券等の写し）"]
[null,null,null,null,null,null,null,null,null,"※茨城県、水戸市、龍ケ崎市、常陸太田市、北茨城市、牛久市及び大子町は、法定外労災に未加入の場合、申請できません。"]
[]
[]
[9,"舗装工事特別技術職員（茨城県の舗装Ａ等級を希望する場合のみ）",null,null,null,null,null,null,null,"０：いない　１：いる",null,null,null,null,null,null,null,null,null,null,null,null,null,null,null,null,null,null,"※１の場合は、\n　・調書（様式第6号の3）\n　・対象技術者の資格者証\n　・対象技術者の常勤性の確認書類\n　  標準報酬決定通知書の写し等　（詳細は下記手引き参照）\n　　　　令和５・６年度建設工事入札参加資格審査申請の手引きの\n　　　　「9 舗装工事特別技術職員」"]